Workbook

Sheet 📊 Benford Analysis
A1: Sample | B1: Mantissa | C1: Power | D1: 1 | E1: 2 | F1: 3 | G1: 4 | H1: 5 | I1: 6 | J1: 7 | K1: 8 | L1: 9 | M1: ©Alexandre Gambuto, Advanced_Benford_Analysis.xlms December 2017 v1.0 "any diffusion, use or modification should credit the author and the following source : blog.alexandre-gambuto.com"
A2: 2.718281828 | B2: =IF(ISBLANK(A2),"",A2/10^C2) -> 2.718281828 | C2: =IF(ISBLANK(A2),"",INT(LOG10(ABS(A2)))) -> 0 | D2: =IF(ISBLANK(A2),"",VALUE(MID(SUBSTITUTE(ABS($B2),",",""),D$1,1))) -> 2 | E2: =IF(ISBLANK(A2),"",VALUE(IF(MID(SUBSTITUTE(ABS($B2),",",""),E$1,1)="",0,MID(SUBSTITUTE(ABS($B2),",",""),E$1,1)))) -> 7 | F2: =IF(ISBLANK(B2),"",VALUE(IF(MID(SUBSTITUTE(ABS($B2),",",""),F$1,1)="",0,MID(SUBSTITUTE(ABS($B2),",",""),F$1,1)))) -> 1 | G2: 8 | H2: 2 | I2: 8 | J2: 1 | K2: 8 | L2: 2
A3: 7.389056099 | B3: =IF(ISBLANK(A3),"",A3/10^C3) -> 7.389056099 | C3: =IF(ISBLANK(A3),"",INT(LOG10(ABS(A3)))) -> 0 | D3: =IF(ISBLANK(A3),"",VALUE(MID(SUBSTITUTE(ABS($B3),",",""),D$1,1))) -> 7 | E3: =IF(ISBLANK(A3),"",VALUE(IF(MID(SUBSTITUTE(ABS($B3),",",""),E$1,1)="",0,MID(SUBSTITUTE(ABS($B3),",",""),E$1,1)))) -> 3 | F3: =IF(ISBLANK(B3),"",VALUE(IF(MID(SUBSTITUTE(ABS($B3),",",""),F$1,1)="",0,MID(SUBSTITUTE(ABS($B3),",",""),F$1,1)))) -> 8 | G3: =IF(ISBLANK(C3),"",VALUE(IF(MID(SUBSTITUTE(ABS($B3),",",""),G$1,1)="",0,MID(SUBSTITUTE(ABS($B3),",",""),G$1,1)))) -> 9 | H3: =IF(ISBLANK(D3),"",VALUE(IF(MID(SUBSTITUTE(ABS($B3),",",""),H$1,1)="",0,MID(SUBSTITUTE(ABS($B3),",",""),H$1,1)))) -> 0 | I3: =IF(ISBLANK(E3),"",VALUE(IF(MID(SUBSTITUTE(ABS($B3),",",""),I$1,1)="",0,MID(SUBSTITUTE(ABS($B3),",",""),I$1,1)))) -> 5 | J3: =IF(ISBLANK(F3),"",VALUE(IF(MID(SUBSTITUTE(ABS($B3),",",""),J$1,1)="",0,MID(SUBSTITUTE(ABS($B3),",",""),J$1,1)))) -> 6 | K3: =IF(ISBLANK(G3),"",VALUE(IF(MID(SUBSTITUTE(ABS($B3),",",""),K$1,1)="",0,MID(SUBSTITUTE(ABS($B3),",",""),K$1,1)))) -> 0 | L3: =IF(ISBLANK(H3),"",VALUE(IF(MID(SUBSTITUTE(ABS($B3),",",""),L$1,1)="",0,MID(SUBSTITUTE(ABS($B3),",",""),L$1,1)))) -> 9 | O3: 1st Digit | P3: 0 | Q3: 1 | R3: 2 | S3: 3 | T3: 4 | U3: 5 | V3: 6 | W3: 7 | X3: 8 | Y3: 9
A4: 20.08553692 | B4: 2.008553692 | C4: 1 | D4: 2 | E4: 0 | F4: 0 | G4: 8 | H4: 5 | I4: 5 | J4: 3 | K4: 6 | L4: 9 | N4: Sample | O4: Occurrency | P4: =COUNTIF($D:$D,P3) -> 0 | Q4: =COUNTIF($D:$D,Q3) -> 9 | R4: =COUNTIF($D:$D,R3) -> 6 | S4: 2 | T4: 3 | U4: 3 | V4: 1 | W4: 2 | X4: 2 | Y4: 1 | Z4: =SUM(Q4:Y4) -> 29 | AB4: Table ꭓ²
A5: 54.59815003 | B5: 5.459815003 | C5: 1 | D5: 5 | E5: 4 | F5: 5 | G5: 9 | H5: 8 | I5: 1 | J5: 5 | K5: 0 | L5: 0 | O5: Frequency | P5: =P4/$Z$4 -> 0 | Q5: 0.3103448276 | R5: 0.2068965517 | S5: 0.06896551724 | T5: 0.1034482759 | U5: 0.1034482759 | V5: 0.03448275862 | W5: 0.06896551724 | X5: 0.06896551724 | Y5: 0.03448275862 | Z5: =SUM(Q5:Y5) -> 1 | AB5: Threshold 5% (ddl8) | AC5: =CHIINV(0.05,8) -> 15.50731306 | AD5: (1)
A6: 148.4131591 | B6: 1.484131591 | C6: 2 | D6: 1 | E6: 4 | F6: 8 | G6: 4 | H6: 1 | I6: 3 | J6: 1 | K6: 5 | L6: 9 | N6: Theory | O6: Occurrency | P6: =(P7*$Z$4) -> 0 | Q6: 8.729869874 | R6: 5.106646513 | S6: 3.623223362 | T6: 2.810390377 | U6: 2.296256135 | V6: 1.941456899 | W6: 1.681766462 | X6: 1.483423151 | Y6: 1.326967226 | Z6: =SUM(Q6:Y6) -> 29 | AB6: Threshold 5% (ddl9) | AC6: =CHIINV(0.05,9) -> 16.9189776 | AD6: (2)
A7: 403.4287935 | B7: 4.034287935 | C7: 2 | D7: 4 | E7: 0 | F7: 3 | G7: 4 | H7: 2 | I7: 8 | J7: 7 | K7: 9 | L7: 3 | O7: Frequency | P7: ='⚙️ Theorical Frequencies'!C4 -> 0 | Q7: ='⚙️ Theorical Frequencies'!D4 -> 0.3010299957 | R7: ='⚙️ Theorical Frequencies'!E4 -> 0.1760912591 | S7: ='⚙️ Theorical Frequencies'!F4 -> 0.1249387366 | T7: ='⚙️ Theorical Frequencies'!G4 -> 0.09691001301 | U7: ='⚙️ Theorical Frequencies'!H4 -> 0.07918124605 | V7: ='⚙️ Theorical Frequencies'!I4 -> 0.06694678963 | W7: ='⚙️ Theorical Frequencies'!J4 -> 0.05799194698 | X7: ='⚙️ Theorical Frequencies'!K4 -> 0.05115252245 | Y7: ='⚙️ Theorical Frequencies'!L4 -> 0.04575749056 | Z7: =SUM(Q7:Y7) -> 1
A8: 1096.633158 | B8: 1.096633158 | C8: 3 | D8: 1 | E8: 0 | F8: 9 | G8: 6 | H8: 6 | I8: 3 | J8: 3 | K8: 1 | L8: 5 | N8: Test | O8: Individual ꭓ² | P8: NA | Q8: =(Q4-Q6)^2/Q6 -> 0.00835869101 | R8: =(R4-R6)^2/R6 -> 0.1562826899 | S8: 0.7272127106 | T8: 0.01279246091 | U8: 0.2156795226 | V8: 0.4565340047 | W8: 0.06021798314 | X8: 0.1798890902 | Y8: 0.08056534098 | Z8: =SUM(Q8:Y8) -> 1.897532494 | AA8: (1)
A9: 2980.957987 | B9: 2.980957987 | C9: 3 | D9: 2 | E9: 9 | F9: 8 | G9: 0 | H9: 9 | I9: 5 | J9: 7 | K9: 9 | L9: 8 | O9: ꭓ² matching | P9: =_xlfn.CHISQ.TEST(Q4:Y4,Q6:Y6) -> 0.9839936544
A10: 8103.083928 | B10: 8.103083928 | C10: 3 | D10: 8 | E10: 1 | F10: 0 | G10: 3 | H10: 0 | I10: 8 | J10: 3 | K10: 9 | L10: 2 | O10: 2nd Digit | P10: 0 | Q10: 1 | R10: 2 | S10: 3 | T10: 4 | U10: 5 | V10: 6 | W10: 7 | X10: 8 | Y10: 9
A11: 22026.46579 | B11: 2.202646579 | C11: 4 | D11: 2 | E11: 2 | F11: 0 | G11: 2 | H11: 6 | I11: 4 | J11: 6 | K11: 5 | L11: 7 | N11: Sample | O11: Occurrency | P11: =COUNTIF($E:$E,P10) -> 3 | Q11: =COUNTIF($E:$E,Q10) -> 1 | R11: 5 | S11: 3 | T11: 5 | U11: 2 | V11: 2 | W11: 3 | X11: 2 | Y11: 3 | Z11: =SUM(P11:Y11) -> 29
A12: 59874.14172 | B12: 5.987414172 | C12: 4 | D12: 5 | E12: 9 | F12: 8 | G12: 7 | H12: 4 | I12: 1 | J12: 4 | K12: 1 | L12: 7 | O12: Frequency | P12: =P11/$Z$4 -> 0.1034482759 | Q12: 0.03448275862 | R12: 0.1724137931 | S12: 0.1034482759 | T12: 0.1724137931 | U12: 0.06896551724 | V12: 0.06896551724 | W12: 0.1034482759 | X12: 0.06896551724 | Y12: 0.1034482759 | Z12: =SUM(P12:Y12) -> 1
A13: 162754.7914 | B13: 1.627547914 | C13: 5 | D13: 1 | E13: 6 | F13: 2 | G13: 7 | H13: 5 | I13: 4 | J13: 7 | K13: 9 | L13: 1 | N13: Theory | O13: Occurrency | P13: =(P14*$Z$4) -> 3.470698789 | Q13: 3.302812999 | R13: 3.155823471 | S13: 3.025557247 | T13: 2.908937866 | U13: 2.803639838 | V13: 2.707867338 | W13: 2.620207689 | X13: 2.539531554 | Y13: 2.46492321 | Z13: =SUM(P14:Y14) -> 1
A14: 442413.392 | B14: 4.42413392 | C14: 5 | D14: 4 | E14: 4 | F14: 2 | G14: 4 | H14: 1 | I14: 3 | J14: 3 | K14: 9 | L14: 2 | O14: Frequency | P14: ='⚙️ Theorical Frequencies'!C5 -> 0.1196792686 | Q14: ='⚙️ Theorical Frequencies'!D5 -> 0.1138901034 | R14: ='⚙️ Theorical Frequencies'!E5 -> 0.108821499 | S14: ='⚙️ Theorical Frequencies'!F5 -> 0.1043295602 | T14: ='⚙️ Theorical Frequencies'!G5 -> 0.1003082023 | U14: ='⚙️ Theorical Frequencies'!H5 -> 0.0966772358 | V14: ='⚙️ Theorical Frequencies'!I5 -> 0.09337473578 | W14: ='⚙️ Theorical Frequencies'!J5 -> 0.09035198927 | X14: ='⚙️ Theorical Frequencies'!K5 -> 0.08757005358 | Y14: ='⚙️ Theorical Frequencies'!L5 -> 0.08499735206
A15: 1202604.284 | B15: 1.202604284 | C15: 6 | D15: 1 | E15: 2 | F15: 0 | G15: 2 | H15: 6 | I15: 0 | J15: 4 | K15: 2 | L15: 8 | N15: Test | O15: Individual ꭓ² | P15: =(P11-P13)^2/P13 -> 0.06383652507 | Q15: =(Q11-Q13)^2/Q13 -> 1.605585212 | R15: =(R11-R13)^2/R13 -> 1.077686094 | S15: 0.000215885143 | T15: 1.503139995 | U15: 0.2303566174 | V15: 0.1850445776 | W15: 0.05504991083 | X15: 0.1146251942 | Y15: 0.1161525724 | Z15: =SUM(P15:Y15) -> 4.951692583 | AA15: (2)
A16: 3269017.372 | B16: 3.269017372 | C16: 6 | D16: 3 | E16: 2 | F16: 6 | G16: 9 | H16: 0 | I16: 1 | J16: 7 | K16: 3 | L16: 7 | O16: ꭓ² matching | P16: =_xlfn.CHISQ.TEST(Q11:Y11,Q13:Y13) -> 0.769492266
A17: 8886110.521 | B17: 8.886110521 | C17: 6 | D17: 8 | E17: 8 | F17: 8 | G17: 6 | H17: 1 | I17: 1 | J17: 0 | K17: 5 | L17: 2 | O17: 3nd Digit | P17: 0 | Q17: 1 | R17: 2 | S17: 3 | T17: 4 | U17: 5 | V17: 6 | W17: 7 | X17: 8 | Y17: 9
A18: 24154952.75 | B18: 2.415495275 | C18: 7 | D18: 2 | E18: 4 | F18: 1 | G18: 5 | H18: 4 | I18: 9 | J18: 5 | K18: 2 | L18: 7 | N18: Sample | O18: Occurrency | P18: =COUNTIF($F:$F,P17) -> 5 | Q18: =COUNTIF($F:$F,Q17) -> 3 | R18: 3 | S18: 2 | T18: 3 | U18: 3 | V18: 2 | W18: 0 | X18: 7 | Y18: 1 | Z18: =SUM(P18:Y18) -> 29
A19: 65659969.14 | B19: 6.565996914 | C19: 7 | D19: 6 | E19: 5 | F19: 6 | G19: 5 | H19: 9 | I19: 9 | J19: 6 | K19: 9 | L19: 1 | O19: Frequency | P19: =P18/$Z$4 -> 0.1724137931 | Q19: 0.1034482759 | R19: 0.1034482759 | S19: 0.06896551724 | T19: 0.1034482759 | U19: 0.1034482759 | V19: 0.06896551724 | W19: 0 | X19: 0.2413793103 | Y19: 0.03448275862 | Z19: =SUM(P19:Y19) -> 1
A20: 178482301 | B20: 1.78482301 | C20: 8 | D20: 1 | E20: 7 | F20: 8 | G20: 4 | H20: 8 | I20: 2 | J20: 3 | K20: 0 | L20: 0 | N20: Theory | O20: Occurrency | P20: =(P21*$Z$4) -> 2.951746575 | Q20: 2.939903346 | R20: 2.928193746 | S20: 2.916615031 | T20: 2.905164541 | U20: 2.893839695 | V20: 2.882637988 | W20: 2.87155699 | X20: 2.86059434 | Y20: 2.849747747 | Z20: =SUM(P21:Y21) -> 1
A21: 485165195.4 | B21: 4.851651954 | C21: 8 | D21: 4 | E21: 8 | F21: 5 | G21: 1 | H21: 6 | I21: 5 | J21: 1 | K21: 9 | L21: 5 | O21: Frequency | P21: ='⚙️ Theorical Frequencies'!C6 -> 0.1017843646 | Q21: ='⚙️ Theorical Frequencies'!D6 -> 0.1013759774 | R21: ='⚙️ Theorical Frequencies'!E6 -> 0.1009721981 | S21: ='⚙️ Theorical Frequencies'!F6 -> 0.1005729321 | T21: ='⚙️ Theorical Frequencies'!G6 -> 0.1001780876 | U21: ='⚙️ Theorical Frequencies'!H6 -> 0.09978757569 | V21: ='⚙️ Theorical Frequencies'!I6 -> 0.09940130994 | W21: ='⚙️ Theorical Frequencies'!J6 -> 0.09901920656 | X21: ='⚙️ Theorical Frequencies'!K6 -> 0.09864118415 | Y21: ='⚙️ Theorical Frequencies'!L6 -> 0.09826716368
A22: 1318815734 | B22: 1.318815734 | C22: 9 | D22: 1 | E22: 3 | F22: 1 | G22: 8 | H22: 8 | I22: 1 | J22: 5 | K22: 7 | L22: 3 | N22: Test | O22: Individual ꭓ² | P22: =(P18-P20)^2/P20 -> 1.421308364 | Q22: =(Q18-Q20)^2/Q20 -> 0.001228478422 | R22: =(R18-R20)^2/R20 -> 0.001760859617 | S22: 0.2880678823 | T22: 0.003095784805 | U22: 0.003894483292 | V22: 0.2702558635 | W22: 2.87155699 | X22: 5.989901809 | Y22: 1.200655999 | Z22: =SUM(P22:Y22) -> 12.05172651 | AA22: (2)
A23: 3584912846 | B23: 3.584912846 | C23: 9 | D23: 3 | E23: 5 | F23: 8 | G23: 4 | H23: 9 | I23: 1 | J23: 2 | K23: 8 | L23: 4 | O23: ꭓ² matching | P23: =_xlfn.CHISQ.TEST(Q18:Y18,Q20:Y20) -> 0.2235320473
A24: 9744803446 | B24: 9.744803446 | C24: 9 | D24: 9 | E24: 7 | F24: 4 | G24: 4 | H24: 8 | I24: 0 | J24: 3 | K24: 4 | L24: 4 | O24: 4th Digit | P24: 0 | Q24: 1 | R24: 2 | S24: 3 | T24: 4 | U24: 5 | V24: 6 | W24: 7 | X24: 8 | Y24: 9
A25: 2.648912213e+10 | B25: 2.648912213 | C25: 10 | D25: 2 | E25: 6 | F25: 4 | G25: 8 | H25: 9 | I25: 1 | J25: 2 | K25: 2 | L25: 1 | N25: Sample | O25: Occurrency | P25: =COUNTIF($G:$G,P24) -> 3 | Q25: =COUNTIF($G:$G,Q24) -> 1 | R25: 2 | S25: 1 | T25: 7 | U25: 2 | V25: 3 | W25: 3 | X25: 4 | Y25: 3 | Z25: =SUM(P25:Y25) -> 29
A26: 7.200489934e+10 | B26: 7.200489934 | C26: 10 | D26: 7 | E26: 2 | F26: 0 | G26: 0 | H26: 4 | I26: 8 | J26: 9 | K26: 9 | L26: 3 | O26: Frequency | P26: =P25/$Z$4 -> 0.1034482759 | Q26: 0.03448275862 | R26: 0.06896551724 | S26: 0.03448275862 | T26: 0.2413793103 | U26: 0.06896551724 | V26: 0.1034482759 | W26: 0.1034482759 | X26: 0.1379310345 | Y26: 0.1034482759 | Z26: =SUM(P26:Y26) -> 1
A27: 1.957296094e+11 | B27: 1.957296094 | C27: 11 | D27: 1 | E27: 9 | F27: 5 | G27: 7 | H27: 2 | I27: 9 | J27: 6 | K27: 0 | L27: 9 | N27: Theory | O27: Occurrency | P27: =(P28*$Z$4) -> 2.905108261 | Q27: 2.903969755 | R27: 2.902832505 | S27: 2.901696508 | T27: 2.900561762 | U27: 2.899428263 | V27: 2.898296011 | W27: 2.897165001 | X27: 2.896035232 | Y27: 2.894906701 | Z27: =SUM(P28:Y28) -> 1
A28: 5.320482406e+11 | B28: 5.320482406 | C28: 11 | D28: 5 | E28: 3 | F28: 2 | G28: 0 | H28: 4 | I28: 8 | J28: 2 | K28: 4 | L28: 0 | O28: Frequency | P28: ='⚙️ Theorical Frequencies'!C7 -> 0.1001761469 | Q28: ='⚙️ Theorical Frequencies'!D7 -> 0.1001368881 | R28: ='⚙️ Theorical Frequencies'!E7 -> 0.1000976726 | S28: ='⚙️ Theorical Frequencies'!F7 -> 0.1000585003 | T28: ='⚙️ Theorical Frequencies'!G7 -> 0.1000193711 | U28: ='⚙️ Theorical Frequencies'!H7 -> 0.09998028495 | V28: ='⚙️ Theorical Frequencies'!I7 -> 0.09994124175 | W28: ='⚙️ Theorical Frequencies'!J7 -> 0.09990224142 | X28: ='⚙️ Theorical Frequencies'!K7 -> 0.09986328386 | Y28: ='⚙️ Theorical Frequencies'!L7 -> 0.099824369
A29: 1.446257064e+12 | B29: 1.446257064 | C29: 12 | D29: 1 | E29: 4 | F29: 4 | G29: 6 | H29: 2 | I29: 5 | J29: 7 | K29: 0 | L29: 6 | N29: Test | O29: Individual ꭓ² | P29: =(P25-P27)^2/P27 -> 0.003099520318 | Q29: =(Q25-Q27)^2/Q27 -> 1.248325959 | R29: =(R25-R27)^2/R27 -> 0.2807969564 | S29: 1.246322487 | T29: 5.793841072 | U29: 0.2790105937 | V29: 0.003568890615 | W29: 0.003650132804 | X29: 0.4208298973 | Y29: 0.00381518393 | Z29: =SUM(P29:Y29) -> 9.283260694 | AA29: (2)
H30: 0 | I30: 0 | J30: 0 | K30: 0 | L30: 0 | O30: ꭓ² matching | P30: =_xlfn.CHISQ.TEST(Q25:Y25,Q27:Y27) -> 0.3192160305
H31: 0 | I31: 0 | J31: 0 | K31: 0 | L31: 0 | O31: 5th Digit | P31: 0 | Q31: 1 | R31: 2 | S31: 3 | T31: 4 | U31: 5 | V31: 6 | W31: 7 | X31: 8 | Y31: 9
H32: 0 | I32: 0 | J32: 0 | K32: 0 | L32: 0 | N32: Sample | O32: Occurrency | P32: =COUNTIF($H:$H,P31) -> 684 | Q32: =COUNTIF($H:$H,Q31) -> 3 | R32: 4 | S32: 0 | T32: 4 | U32: 3 | V32: 4 | W32: 0 | X32: 4 | Y32: 4 | Z32: =SUM(P32:Y32) -> 710
H33: 0 | I33: 0 | J33: 0 | K33: 0 | L33: 0 | O33: Frequency | P33: =P32/$Z$4 -> 23.5862069 | Q33: 0.1034482759 | R33: 0.1379310345 | S33: 0 | T33: 0.1379310345 | U33: 0.1034482759 | V33: 0.1379310345 | W33: 0 | X33: 0.1379310345 | Y33: 0.1379310345 | Z33: =SUM(P33:Y33) -> 24.48275862
H34: 0 | I34: 0 | J34: 0 | K34: 0 | L34: 0 | N34: Theory | O34: Occurrency | P34: =(P35*$Z$4) -> 2.900510154 | Q34: 2.900396753 | R34: 2.900283365 | S34: 2.900169989 | T34: 2.900056626 | U34: 2.899943275 | V34: 2.899829936 | W34: 2.89971661 | X34: 2.899603297 | Y34: 2.899489996 | Z34: =SUM(P35:Y35) -> 1
H35: 0 | I35: 0 | J35: 0 | K35: 0 | L35: 0 | O35: Frequency | P35: ='⚙️ Theorical Frequencies'!C8 -> 0.1000175915 | Q35: ='⚙️ Theorical Frequencies'!D8 -> 0.1000136811 | R35: ='⚙️ Theorical Frequencies'!E8 -> 0.1000097712 | S35: ='⚙️ Theorical Frequencies'!F8 -> 0.1000058617 | T35: ='⚙️ Theorical Frequencies'!G8 -> 0.1000019526 | U35: ='⚙️ Theorical Frequencies'!H8 -> 0.09999804396 | V35: ='⚙️ Theorical Frequencies'!I8 -> 0.09999413574 | W35: ='⚙️ Theorical Frequencies'!J8 -> 0.09999022794 | X35: ='⚙️ Theorical Frequencies'!K8 -> 0.09998632058 | Y35: ='⚙️ Theorical Frequencies'!L8 -> 0.09998241365
H36: 0 | I36: 0 | J36: 0 | K36: 0 | L36: 0 | N36: Test | O36: Individual ꭓ² | P36: =(P32-P34)^2/P34 -> 159936.1804 | Q36: =(Q32-Q34)^2/Q34 -> 0.003420499908 | R36: =(R32-R34)^2/R34 -> 0.4169856962 | S36: 2.900169989 | T36: 0.417190277 | U36: 0.003452256589 | V36: 0.4173948803 | W36: 2.89971661 | X36: 0.4175995059 | Y36: 0.4177018271 | Z36: =SUM(P36:Y36) -> 159944.074 | AA36: (2)
H37: 0 | I37: 0 | J37: 0 | K37: 0 | L37: 0 | O37: ꭓ² matching | P37: =_xlfn.CHISQ.TEST(Q32:Y32,Q34:Y34) -> 0.443929003
H38: 0 | I38: 0 | J38: 0 | K38: 0 | L38: 0 | O38: 6th Digit | P38: 0 | Q38: 1 | R38: 2 | S38: 3 | T38: 4 | U38: 5 | V38: 6 | W38: 7 | X38: 8 | Y38: 9
H39: 0 | I39: 0 | J39: 0 | K39: 0 | L39: 0 | N39: Sample | O39: Occurrency | P39: =COUNTIF($I:$I,P38) -> 683 | Q39: =COUNTIF($I:$I,Q38) -> 7 | R39: 1 | S39: 3 | T39: 2 | U39: 5 | V39: 1 | W39: 0 | X39: 5 | Y39: 3 | Z39: =SUM(P39:Y39) -> 710
H40: 0 | I40: 0 | J40: 0 | K40: 0 | L40: 0 | O40: Frequency | P40: =P39/$Z$4 -> 23.55172414 | Q40: 0.2413793103 | R40: 0.03448275862 | S40: 0.1034482759 | T40: 0.06896551724 | U40: 0.1724137931 | V40: 0.03448275862 | W40: 0 | X40: 0.1724137931 | Y40: 0.1034482759 | Z40: =SUM(P40:Y40) -> 24.48275862
H41: 0 | I41: 0 | J41: 0 | K41: 0 | L41: 0 | N41: Theory | O41: Occurrency | P41: =P42*$Z$11 -> 2.900051009 | Q41: 2.900039673 | R41: 2.900028338 | S41: 2.900017002 | T41: 2.900005667 | U41: 2.899994332 | V41: 2.899982997 | W41: 2.899971662 | X41: 2.899960327 | Y41: 2.899948993 | Z41: =SUM(P42:Y42) -> 1
H42: 0 | I42: 0 | J42: 0 | K42: 0 | L42: 0 | O42: Frequency | P42: ='⚙️ Theorical Frequencies'!C9 -> 0.1000017589 | Q42: ='⚙️ Theorical Frequencies'!D9 -> 0.100001368 | R42: ='⚙️ Theorical Frequencies'!E9 -> 0.1000009772 | S42: ='⚙️ Theorical Frequencies'!F9 -> 0.1000005863 | T42: ='⚙️ Theorical Frequencies'!G9 -> 0.1000001954 | U42: ='⚙️ Theorical Frequencies'!H9 -> 0.09999980455 | V42: ='⚙️ Theorical Frequencies'!I9 -> 0.09999941369 | W42: ='⚙️ Theorical Frequencies'!J9 -> 0.09999902283 | X42: ='⚙️ Theorical Frequencies'!K9 -> 0.09999863198 | Y42: ='⚙️ Theorical Frequencies'!L9 -> 0.09999824113
H43: 0 | I43: 0 | J43: 0 | K43: 0 | L43: 0 | N43: Test | O43: Individual ꭓ² | P43: =(P39-P41)^2/P41 -> 159492.3466 | Q43: =(Q39-Q41)^2/Q41 -> 5.796360249 | R43: 1.244852554 | S43: 0.003447083183 | T43: 0.2793133165 | U43: 1.520700836 | V43: 1.244812605 | W43: 2.899971662 | X43: 1.520767917 | Y43: 0.003451855206 | Z43: =SUM(P43:Y43) -> 159506.8603 | AA43: (2)
H44: 0 | I44: 0 | J44: 0 | K44: 0 | L44: 0 | O44: ꭓ² matching | P44: =_xlfn.CHISQ.TEST(P39:Y39,P41:Y41) -> 0
H45: 0 | I45: 0 | J45: 0 | K45: 0 | L45: 0 | O45: 7th Digit | P45: 0 | Q45: 1 | R45: 2 | S45: 3 | T45: 4 | U45: 5 | V45: 6 | W45: 7 | X45: 8 | Y45: 9
H46: 0 | I46: 0 | J46: 0 | K46: 0 | L46: 0 | N46: Sample | O46: Occurrency | P46: =COUNTIF($J:$J,P45) -> 682 | Q46: =COUNTIF($J:$J,Q45) -> 3 | R46: 3 | S46: 6 | T46: 2 | U46: 3 | V46: 4 | W46: 6 | X46: 0 | Y46: 1 | Z46: =SUM(P46:Y46) -> 710
H47: 0 | I47: 0 | J47: 0 | K47: 0 | L47: 0 | O47: Frequency | P47: =P46/$Z$4 -> 23.51724138 | Q47: 0.1034482759 | R47: 0.1034482759 | S47: 0.2068965517 | T47: 0.06896551724 | U47: 0.1034482759 | V47: 0.1379310345 | W47: 0.2068965517 | X47: 0 | Y47: 0.03448275862 | Z47: =SUM(P47:Y47) -> 24.48275862
H48: 0 | I48: 0 | J48: 0 | K48: 0 | L48: 0 | N48: Theory | O48: Occurrency | P48: =P49*$Z$11 -> 2.900005101 | Q48: 2.900003967 | R48: 2.900002834 | S48: 2.9000017 | T48: 2.900000567 | U48: 2.899999433 | V48: 2.8999983 | W48: 2.899997166 | X48: 2.899996033 | Y48: 2.899994899 | Z48: =SUM(P49:Y49) -> 1
H49: 0 | I49: 0 | J49: 0 | K49: 0 | L49: 0 | O49: Frequency | P49: ='⚙️ Theorical Frequencies'!C10 -> 0.1000001759 | Q49: ='⚙️ Theorical Frequencies'!D10 -> 0.1000001368 | R49: ='⚙️ Theorical Frequencies'!E10 -> 0.1000000977 | S49: ='⚙️ Theorical Frequencies'!F10 -> 0.1000000586 | T49: ='⚙️ Theorical Frequencies'!G10 -> 0.1000000195 | U49: ='⚙️ Theorical Frequencies'!H10 -> 0.09999998046 | V49: ='⚙️ Theorical Frequencies'!I10 -> 0.09999994137 | W49: ='⚙️ Theorical Frequencies'!J10 -> 0.09999990228 | X49: ='⚙️ Theorical Frequencies'!K10 -> 0.0999998632 | Y49: ='⚙️ Theorical Frequencies'!L10 -> 0.09999982411
H50: 0 | I50: 0 | J50: 0 | K50: 0 | L50: 0 | N50: Test | O50: Individual ꭓ² | P50: =(P46-P48)^2/P48 -> 159026.2041 | Q50: =(Q46-Q48)^2/Q48 -> 0.003447997545 | R50: 0.003448077063 | S50: 3.313787526 | T50: 0.279310642 | U50: 0.003448315623 | V50: 0.4172429138 | W50: 3.3138024 | X50: 2.899996033 | Y50: 1.244823092 | Z50: =SUM(P50:Y50) -> 159037.6834 | AA50: (2)
H51: 0 | I51: 0 | J51: 0 | K51: 0 | L51: 0 | O51: ꭓ² matching | P51: =_xlfn.CHISQ.TEST(P46:Y46,P48:Y48) -> 0
H52: 0 | I52: 0 | J52: 0 | K52: 0 | L52: 0 | O52: 8th Digit | P52: 0 | Q52: 1 | R52: 2 | S52: 3 | T52: 4 | U52: 5 | V52: 6 | W52: 7 | X52: 8 | Y52: 9
H53: 0 | I53: 0 | J53: 0 | K53: 0 | L53: 0 | N53: Sample | O53: Occurrency | P53: =COUNTIF($K:$K,P52) -> 686 | Q53: =COUNTIF($K:$K,Q52) -> 2 | R53: 3 | S53: 1 | T53: 2 | U53: 3 | V53: 1 | W53: 1 | X53: 3 | Y53: 8 | Z53: =SUM(P53:Y53) -> 710
H54: 0 | I54: 0 | J54: 0 | K54: 0 | L54: 0 | O54: Frequency | P54: =P53/$Z$4 -> 23.65517241 | Q54: 0.06896551724 | R54: 0.1034482759 | S54: 0.03448275862 | T54: 0.06896551724 | U54: 0.1034482759 | V54: 0.03448275862 | W54: 0.03448275862 | X54: 0.1034482759 | Y54: 0.275862069 | Z54: =SUM(P54:Y54) -> 24.48275862
H55: 0 | I55: 0 | J55: 0 | K55: 0 | L55: 0 | N55: Theory | O55: Occurrency | P55: =P56*$Z$11 -> 2.90000051 | Q55: 2.900000397 | R55: 2.900000283 | S55: 2.90000017 | T55: 2.900000057 | U55: 2.899999943 | V55: 2.89999983 | W55: 2.899999717 | X55: 2.899999603 | Y55: 2.89999949 | Z55: =SUM(P56:Y56) -> 1
H56: 0 | I56: 0 | J56: 0 | K56: 0 | L56: 0 | O56: Frequency | P56: ='⚙️ Theorical Frequencies'!C11 -> 0.1000000176 | Q56: ='⚙️ Theorical Frequencies'!D11 -> 0.1000000137 | R56: ='⚙️ Theorical Frequencies'!E11 -> 0.1000000098 | S56: ='⚙️ Theorical Frequencies'!F11 -> 0.1000000059 | T56: ='⚙️ Theorical Frequencies'!G11 -> 0.100000002 | U56: ='⚙️ Theorical Frequencies'!H11 -> 0.09999999805 | V56: ='⚙️ Theorical Frequencies'!I11 -> 0.09999999414 | W56: ='⚙️ Theorical Frequencies'!J11 -> 0.09999999023 | X56: ='⚙️ Theorical Frequencies'!K11 -> 0.09999998632 | Y56: ='⚙️ Theorical Frequencies'!L11 -> 0.09999998241
H57: 0 | I57: 0 | J57: 0 | K57: 0 | L57: 0 | N57: Test | O57: Individual ꭓ² | P57: =(P53-P55)^2/P55 -> 160905.3542 | Q57: =(Q53-Q55)^2/Q55 -> 0.2793105529 | R57: 0.003448255982 | S57: 1.244827736 | T57: 0.2793103745 | U57: 0.003448279838 | V57: 1.244827436 | W57: 1.244827337 | X57: 0.003448303694 | Y57: 8.968968889 | Z57: =SUM(P57:Y57) -> 160918.6266 | AA57: (2)
H58: 0 | I58: 0 | J58: 0 | K58: 0 | L58: 0 | O58: ꭓ² matching | P58: =_xlfn.CHISQ.TEST(P53:Y53,P55:Y55) -> 0
H59: 0 | I59: 0 | J59: 0 | K59: 0 | L59: 0 | O59: 9th Digit | P59: 0 | Q59: 1 | R59: 2 | S59: 3 | T59: 4 | U59: 5 | V59: 6 | W59: 7 | X59: 8 | Y59: 9
H60: 0 | I60: 0 | J60: 0 | K60: 0 | L60: 0 | N60: Sample | O60: Occurrency | P60: =COUNTIF($L:$L,P59) -> 684 | Q60: =COUNTIF($L:$L,Q59) -> 3 | R60: 4 | S60: 3 | T60: 2 | U60: 2 | V60: 1 | W60: 4 | X60: 2 | Y60: 5 | Z60: =SUM(P60:Y60) -> 710
H61: 0 | I61: 0 | J61: 0 | K61: 0 | L61: 0 | O61: Frequency | P61: =P60/$Z$4 -> 23.5862069 | Q61: 0.1034482759 | R61: 0.1379310345 | S61: 0.1034482759 | T61: 0.06896551724 | U61: 0.06896551724 | V61: 0.03448275862 | W61: 0.1379310345 | X61: 0.06896551724 | Y61: 0.1724137931 | Z61: =SUM(P61:Y61) -> 24.48275862
H62: 0 | I62: 0 | J62: 0 | K62: 0 | L62: 0 | N62: Theory | O62: Occurrency | P62: =P63*$Z$11 -> 2.90000051 | Q62: 2.900000397 | R62: 2.900000283 | S62: 2.90000017 | T62: 2.900000057 | U62: 2.899999943 | V62: 2.89999983 | W62: 2.899999717 | X62: 2.899999603 | Y62: 2.89999949 | Z62: =SUM(P63:Y63) -> 1
H63: 0 | I63: 0 | J63: 0 | K63: 0 | L63: 0 | O63: Frequency | P63: ='⚙️ Theorical Frequencies'!C11 -> 0.1000000176 | Q63: ='⚙️ Theorical Frequencies'!D11 -> 0.1000000137 | R63: ='⚙️ Theorical Frequencies'!E11 -> 0.1000000098 | S63: ='⚙️ Theorical Frequencies'!F11 -> 0.1000000059 | T63: ='⚙️ Theorical Frequencies'!G11 -> 0.100000002 | U63: ='⚙️ Theorical Frequencies'!H11 -> 0.09999999805 | V63: ='⚙️ Theorical Frequencies'!I11 -> 0.09999999414 | W63: ='⚙️ Theorical Frequencies'!J11 -> 0.09999999023 | X63: ='⚙️ Theorical Frequencies'!K11 -> 0.09999998632 | Y63: ='⚙️ Theorical Frequencies'!L11 -> 0.09999998241
H64: 0 | I64: 0 | J64: 0 | K64: 0 | L64: 0 | N64: Test | O64: Individual ꭓ² | P64: =(P60-P62)^2/P62 -> 159964.5268 | Q64: =(Q60-Q62)^2/Q62 -> 0.00344824803 | R64: 0.4172411236 | S64: 0.003448263934 | T64: 0.2793103745 | U64: 0.2793103151 | V64: 1.244827436 | W64: 0.4172416351 | X64: 0.2793101368 | Y64: 1.520690661 | Z64: =SUM(P64:Y64) -> 159968.9716 | AA64: (2)
H65: 0 | I65: 0 | J65: 0 | K65: 0 | L65: 0 | O65: ꭓ² matching | P65: =_xlfn.CHISQ.TEST(P60:Y60,P62:Y62) -> 0
H66: 0 | I66: 0 | J66: 0 | K66: 0 | L66: 0
D67: =IF(ISBLANK(A67),"",VALUE(MID(SUBSTITUTE(ABS($B67),",",""),D$1,1))) ->  | E67: =IF(ISBLANK(A67),"",VALUE(IF(MID(SUBSTITUTE(ABS($B67),",",""),E$1,1)="",0,MID(SUBSTITUTE(ABS($B67),",",""),E$1,1)))) ->  | F67: =IF(ISBLANK(B67),"",VALUE(IF(MID(SUBSTITUTE(ABS($B67),",",""),F$1,1)="",0,MID(SUBSTITUTE(ABS($B67),",",""),F$1,1)))) ->  | G67: =IF(ISBLANK(C67),"",VALUE(IF(MID(SUBSTITUTE(ABS($B67),",",""),G$1,1)="",0,MID(SUBSTITUTE(ABS($B67),",",""),G$1,1)))) ->  | H67: =IF(ISBLANK(D67),"",VALUE(IF(MID(SUBSTITUTE(ABS($B67),",",""),H$1,1)="",0,MID(SUBSTITUTE(ABS($B67),",",""),H$1,1)))) -> 0 | I67: =IF(ISBLANK(E67),"",VALUE(IF(MID(SUBSTITUTE(ABS($B67),",",""),I$1,1)="",0,MID(SUBSTITUTE(ABS($B67),",",""),I$1,1)))) -> 0 | J67: =IF(ISBLANK(F67),"",VALUE(IF(MID(SUBSTITUTE(ABS($B67),",",""),J$1,1)="",0,MID(SUBSTITUTE(ABS($B67),",",""),J$1,1)))) -> 0 | K67: =IF(ISBLANK(G67),"",VALUE(IF(MID(SUBSTITUTE(ABS($B67),",",""),K$1,1)="",0,MID(SUBSTITUTE(ABS($B67),",",""),K$1,1)))) -> 0 | L67: =IF(ISBLANK(H67),"",VALUE(IF(MID(SUBSTITUTE(ABS($B67),",",""),L$1,1)="",0,MID(SUBSTITUTE(ABS($B67),",",""),L$1,1)))) -> 0
H68: 0 | I68: 0 | J68: 0 | K68: 0 | L68: 0
H69: 0 | I69: 0 | J69: 0 | K69: 0 | L69: 0
H70: 0 | I70: 0 | J70: 0 | K70: 0 | L70: 0
H71: 0 | I71: 0 | J71: 0 | K71: 0 | L71: 0
H72: 0 | I72: 0 | J72: 0 | K72: 0 | L72: 0
H73: 0 | I73: 0 | J73: 0 | K73: 0 | L73: 0
H74: 0 | I74: 0 | J74: 0 | K74: 0 | L74: 0
H75: 0 | I75: 0 | J75: 0 | K75: 0 | L75: 0
H76: 0 | I76: 0 | J76: 0 | K76: 0 | L76: 0
H77: 0 | I77: 0 | J77: 0 | K77: 0 | L77: 0
H78: 0 | I78: 0 | J78: 0 | K78: 0 | L78: 0
H79: 0 | I79: 0 | J79: 0 | K79: 0 | L79: 0
H80: 0 | I80: 0 | J80: 0 | K80: 0 | L80: 0
H81: 0 | I81: 0 | J81: 0 | K81: 0 | L81: 0
H82: 0 | I82: 0 | J82: 0 | K82: 0 | L82: 0
H83: 0 | I83: 0 | J83: 0 | K83: 0 | L83: 0
H84: 0 | I84: 0 | J84: 0 | K84: 0 | L84: 0
H85: 0 | I85: 0 | J85: 0 | K85: 0 | L85: 0
H86: 0 | I86: 0 | J86: 0 | K86: 0 | L86: 0
H87: 0 | I87: 0 | J87: 0 | K87: 0 | L87: 0
H88: 0 | I88: 0 | J88: 0 | K88: 0 | L88: 0
H89: 0 | I89: 0 | J89: 0 | K89: 0 | L89: 0
H90: 0 | I90: 0 | J90: 0 | K90: 0 | L90: 0
H91: 0 | I91: 0 | J91: 0 | K91: 0 | L91: 0
H92: 0 | I92: 0 | J92: 0 | K92: 0 | L92: 0
H93: 0 | I93: 0 | J93: 0 | K93: 0 | L93: 0
H94: 0 | I94: 0 | J94: 0 | K94: 0 | L94: 0
H95: 0 | I95: 0 | J95: 0 | K95: 0 | L95: 0
H96: 0 | I96: 0 | J96: 0 | K96: 0 | L96: 0
H97: 0 | I97: 0 | J97: 0 | K97: 0 | L97: 0
H98: 0 | I98: 0 | J98: 0 | K98: 0 | L98: 0
H99: 0 | I99: 0 | J99: 0 | K99: 0 | L99: 0
H100: 0 | I100: 0 | J100: 0 | K100: 0 | L100: 0
H101: 0 | I101: 0 | J101: 0 | K101: 0 | L101: 0
H102: 0 | I102: 0 | J102: 0 | K102: 0 | L102: 0
H103: 0 | I103: 0 | J103: 0 | K103: 0 | L103: 0
H104: 0 | I104: 0 | J104: 0 | K104: 0 | L104: 0
H105: 0 | I105: 0 | J105: 0 | K105: 0 | L105: 0
H106: 0 | I106: 0 | J106: 0 | K106: 0 | L106: 0
H107: 0 | I107: 0 | J107: 0 | K107: 0 | L107: 0
H108: 0 | I108: 0 | J108: 0 | K108: 0 | L108: 0
H109: 0 | I109: 0 | J109: 0 | K109: 0 | L109: 0
H110: 0 | I110: 0 | J110: 0 | K110: 0 | L110: 0
H111: 0 | I111: 0 | J111: 0 | K111: 0 | L111: 0
H112: 0 | I112: 0 | J112: 0 | K112: 0 | L112: 0
H113: 0 | I113: 0 | J113: 0 | K113: 0 | L113: 0
H114: 0 | I114: 0 | J114: 0 | K114: 0 | L114: 0
H115: 0 | I115: 0 | J115: 0 | K115: 0 | L115: 0
H116: 0 | I116: 0 | J116: 0 | K116: 0 | L116: 0
H117: 0 | I117: 0 | J117: 0 | K117: 0 | L117: 0
H118: 0 | I118: 0 | J118: 0 | K118: 0 | L118: 0
H119: 0 | I119: 0 | J119: 0 | K119: 0 | L119: 0
H120: 0 | I120: 0 | J120: 0 | K120: 0 | L120: 0
H121: 0 | I121: 0 | J121: 0 | K121: 0 | L121: 0
H122: 0 | I122: 0 | J122: 0 | K122: 0 | L122: 0
H123: 0 | I123: 0 | J123: 0 | K123: 0 | L123: 0
H124: 0 | I124: 0 | J124: 0 | K124: 0 | L124: 0
H125: 0 | I125: 0 | J125: 0 | K125: 0 | L125: 0
H126: 0 | I126: 0 | J126: 0 | K126: 0 | L126: 0
H127: 0 | I127: 0 | J127: 0 | K127: 0 | L127: 0
H128: 0 | I128: 0 | J128: 0 | K128: 0 | L128: 0
H129: 0 | I129: 0 | J129: 0 | K129: 0 | L129: 0
H130: 0 | I130: 0 | J130: 0 | K130: 0 | L130: 0
D131: =IF(ISBLANK(A131),"",VALUE(MID(SUBSTITUTE(ABS($B131),",",""),D$1,1))) ->  | E131: =IF(ISBLANK(A131),"",VALUE(IF(MID(SUBSTITUTE(ABS($B131),",",""),E$1,1)="",0,MID(SUBSTITUTE(ABS($B131),",",""),E$1,1)))) ->  | F131: =IF(ISBLANK(B131),"",VALUE(IF(MID(SUBSTITUTE(ABS($B131),",",""),F$1,1)="",0,MID(SUBSTITUTE(ABS($B131),",",""),F$1,1)))) ->  | G131: =IF(ISBLANK(C131),"",VALUE(IF(MID(SUBSTITUTE(ABS($B131),",",""),G$1,1)="",0,MID(SUBSTITUTE(ABS($B131),",",""),G$1,1)))) ->  | H131: =IF(ISBLANK(D131),"",VALUE(IF(MID(SUBSTITUTE(ABS($B131),",",""),H$1,1)="",0,MID(SUBSTITUTE(ABS($B131),",",""),H$1,1)))) -> 0 | I131: =IF(ISBLANK(E131),"",VALUE(IF(MID(SUBSTITUTE(ABS($B131),",",""),I$1,1)="",0,MID(SUBSTITUTE(ABS($B131),",",""),I$1,1)))) -> 0 | J131: =IF(ISBLANK(F131),"",VALUE(IF(MID(SUBSTITUTE(ABS($B131),",",""),J$1,1)="",0,MID(SUBSTITUTE(ABS($B131),",",""),J$1,1)))) -> 0 | K131: =IF(ISBLANK(G131),"",VALUE(IF(MID(SUBSTITUTE(ABS($B131),",",""),K$1,1)="",0,MID(SUBSTITUTE(ABS($B131),",",""),K$1,1)))) -> 0 | L131: =IF(ISBLANK(H131),"",VALUE(IF(MID(SUBSTITUTE(ABS($B131),",",""),L$1,1)="",0,MID(SUBSTITUTE(ABS($B131),",",""),L$1,1)))) -> 0
H132: 0 | I132: 0 | J132: 0 | K132: 0 | L132: 0
H133: 0 | I133: 0 | J133: 0 | K133: 0 | L133: 0
H134: 0 | I134: 0 | J134: 0 | K134: 0 | L134: 0
H135: 0 | I135: 0 | J135: 0 | K135: 0 | L135: 0
H136: 0 | I136: 0 | J136: 0 | K136: 0 | L136: 0
H137: 0 | I137: 0 | J137: 0 | K137: 0 | L137: 0
H138: 0 | I138: 0 | J138: 0 | K138: 0 | L138: 0
H139: 0 | I139: 0 | J139: 0 | K139: 0 | L139: 0
H140: 0 | I140: 0 | J140: 0 | K140: 0 | L140: 0
H141: 0 | I141: 0 | J141: 0 | K141: 0 | L141: 0
H142: 0 | I142: 0 | J142: 0 | K142: 0 | L142: 0
H143: 0 | I143: 0 | J143: 0 | K143: 0 | L143: 0
H144: 0 | I144: 0 | J144: 0 | K144: 0 | L144: 0
H145: 0 | I145: 0 | J145: 0 | K145: 0 | L145: 0
H146: 0 | I146: 0 | J146: 0 | K146: 0 | L146: 0
H147: 0 | I147: 0 | J147: 0 | K147: 0 | L147: 0
H148: 0 | I148: 0 | J148: 0 | K148: 0 | L148: 0
H149: 0 | I149: 0 | J149: 0 | K149: 0 | L149: 0
H150: 0 | I150: 0 | J150: 0 | K150: 0 | L150: 0
H151: 0 | I151: 0 | J151: 0 | K151: 0 | L151: 0
H152: 0 | I152: 0 | J152: 0 | K152: 0 | L152: 0
H153: 0 | I153: 0 | J153: 0 | K153: 0 | L153: 0
H154: 0 | I154: 0 | J154: 0 | K154: 0 | L154: 0
H155: 0 | I155: 0 | J155: 0 | K155: 0 | L155: 0
H156: 0 | I156: 0 | J156: 0 | K156: 0 | L156: 0
H157: 0 | I157: 0 | J157: 0 | K157: 0 | L157: 0
H158: 0 | I158: 0 | J158: 0 | K158: 0 | L158: 0
H159: 0 | I159: 0 | J159: 0 | K159: 0 | L159: 0
H160: 0 | I160: 0 | J160: 0 | K160: 0 | L160: 0
H161: 0 | I161: 0 | J161: 0 | K161: 0 | L161: 0
H162: 0 | I162: 0 | J162: 0 | K162: 0 | L162: 0
H163: 0 | I163: 0 | J163: 0 | K163: 0 | L163: 0
H164: 0 | I164: 0 | J164: 0 | K164: 0 | L164: 0
H165: 0 | I165: 0 | J165: 0 | K165: 0 | L165: 0
H166: 0 | I166: 0 | J166: 0 | K166: 0 | L166: 0
H167: 0 | I167: 0 | J167: 0 | K167: 0 | L167: 0
H168: 0 | I168: 0 | J168: 0 | K168: 0 | L168: 0
H169: 0 | I169: 0 | J169: 0 | K169: 0 | L169: 0
H170: 0 | I170: 0 | J170: 0 | K170: 0 | L170: 0
H171: 0 | I171: 0 | J171: 0 | K171: 0 | L171: 0
H172: 0 | I172: 0 | J172: 0 | K172: 0 | L172: 0
H173: 0 | I173: 0 | J173: 0 | K173: 0 | L173: 0
H174: 0 | I174: 0 | J174: 0 | K174: 0 | L174: 0
H175: 0 | I175: 0 | J175: 0 | K175: 0 | L175: 0
H176: 0 | I176: 0 | J176: 0 | K176: 0 | L176: 0
H177: 0 | I177: 0 | J177: 0 | K177: 0 | L177: 0
H178: 0 | I178: 0 | J178: 0 | K178: 0 | L178: 0
H179: 0 | I179: 0 | J179: 0 | K179: 0 | L179: 0
H180: 0 | I180: 0 | J180: 0 | K180: 0 | L180: 0
H181: 0 | I181: 0 | J181: 0 | K181: 0 | L181: 0
H182: 0 | I182: 0 | J182: 0 | K182: 0 | L182: 0
H183: 0 | I183: 0 | J183: 0 | K183: 0 | L183: 0
H184: 0 | I184: 0 | J184: 0 | K184: 0 | L184: 0
H185: 0 | I185: 0 | J185: 0 | K185: 0 | L185: 0
H186: 0 | I186: 0 | J186: 0 | K186: 0 | L186: 0
H187: 0 | I187: 0 | J187: 0 | K187: 0 | L187: 0
H188: 0 | I188: 0 | J188: 0 | K188: 0 | L188: 0
H189: 0 | I189: 0 | J189: 0 | K189: 0 | L189: 0
H190: 0 | I190: 0 | J190: 0 | K190: 0 | L190: 0
H191: 0 | I191: 0 | J191: 0 | K191: 0 | L191: 0
H192: 0 | I192: 0 | J192: 0 | K192: 0 | L192: 0
H193: 0 | I193: 0 | J193: 0 | K193: 0 | L193: 0
H194: 0 | I194: 0 | J194: 0 | K194: 0 | L194: 0
D195: =IF(ISBLANK(A195),"",VALUE(MID(SUBSTITUTE(ABS($B195),",",""),D$1,1))) ->  | E195: =IF(ISBLANK(A195),"",VALUE(IF(MID(SUBSTITUTE(ABS($B195),",",""),E$1,1)="",0,MID(SUBSTITUTE(ABS($B195),",",""),E$1,1)))) ->  | F195: =IF(ISBLANK(B195),"",VALUE(IF(MID(SUBSTITUTE(ABS($B195),",",""),F$1,1)="",0,MID(SUBSTITUTE(ABS($B195),",",""),F$1,1)))) ->  | G195: =IF(ISBLANK(C195),"",VALUE(IF(MID(SUBSTITUTE(ABS($B195),",",""),G$1,1)="",0,MID(SUBSTITUTE(ABS($B195),",",""),G$1,1)))) ->  | H195: =IF(ISBLANK(D195),"",VALUE(IF(MID(SUBSTITUTE(ABS($B195),",",""),H$1,1)="",0,MID(SUBSTITUTE(ABS($B195),",",""),H$1,1)))) -> 0 | I195: =IF(ISBLANK(E195),"",VALUE(IF(MID(SUBSTITUTE(ABS($B195),",",""),I$1,1)="",0,MID(SUBSTITUTE(ABS($B195),",",""),I$1,1)))) -> 0 | J195: =IF(ISBLANK(F195),"",VALUE(IF(MID(SUBSTITUTE(ABS($B195),",",""),J$1,1)="",0,MID(SUBSTITUTE(ABS($B195),",",""),J$1,1)))) -> 0 | K195: =IF(ISBLANK(G195),"",VALUE(IF(MID(SUBSTITUTE(ABS($B195),",",""),K$1,1)="",0,MID(SUBSTITUTE(ABS($B195),",",""),K$1,1)))) -> 0 | L195: =IF(ISBLANK(H195),"",VALUE(IF(MID(SUBSTITUTE(ABS($B195),",",""),L$1,1)="",0,MID(SUBSTITUTE(ABS($B195),",",""),L$1,1)))) -> 0
H196: 0 | I196: 0 | J196: 0 | K196: 0 | L196: 0
H197: 0 | I197: 0 | J197: 0 | K197: 0 | L197: 0
H198: 0 | I198: 0 | J198: 0 | K198: 0 | L198: 0
H199: 0 | I199: 0 | J199: 0 | K199: 0 | L199: 0
H200: 0 | I200: 0 | J200: 0 | K200: 0 | L200: 0
... 510 more rows

Sheet 📉 Plot

Sheet 📦 Batch Analysis
C1: n | D1: Squarre | E1: ^1/2 | F1: Fibonacci | G1: Natural Log | H1: Exponential
C2: 1 | D2: =C2^2 -> 1 | E2: =SQRT(C2) -> 1 | F2: 1 | G2: =LN(C2) -> 0 | H2: =EXP(C2) -> 2.718281828
C3: =C2+1 -> 2 | D3: =C3^2 -> 4 | E3: =SQRT(C3) -> 1.414213562 | F3: 1 | G3: =LN(C3) -> 0.6931471806 | H3: =EXP(C3) -> 7.389056099
A4: Number of series to be analyzed | B4: =COUNT(2:2) -> 6 | C4: =C3+1 -> 3 | D4: 9 | E4: 1.732050808 | F4: =F2+F3 -> 2 | G4: 1.098612289 | H4: 20.08553692
B5: (adjust if incorrect) | C5: 4 | D5: 16 | E5: 2 | F5: =F3+F4 -> 3 | G5: 1.386294361 | H5: 54.59815003
C6: 5 | D6: 25 | E6: 2.236067977 | F6: =F4+F5 -> 5 | G6: 1.609437912 | H6: 148.4131591
C7: 6 | D7: 36 | E7: 2.449489743 | F7: 8 | G7: 1.791759469 | H7: 403.4287935
C8: 7 | D8: 49 | E8: 2.645751311 | F8: 13 | G8: 1.945910149 | H8: 1096.633158
C9: 8 | D9: 64 | E9: 2.828427125 | F9: 21 | G9: 2.079441542 | H9: 2980.957987
C10: 9 | D10: 81 | E10: 3 | F10: 34 | G10: 2.197224577 | H10: 8103.083928
C11: 10 | D11: 100 | E11: 3.16227766 | F11: 55 | G11: 2.302585093 | H11: 22026.46579
C12: 11 | D12: 121 | E12: 3.31662479 | F12: 89 | G12: 2.397895273 | H12: 59874.14172
C13: 12 | D13: 144 | E13: 3.464101615 | F13: 144 | G13: 2.48490665 | H13: 162754.7914
C14: 13 | D14: 169 | E14: 3.605551275 | F14: 233 | G14: 2.564949357 | H14: 442413.392
C15: 14 | D15: 196 | E15: 3.741657387 | F15: 377 | G15: 2.63905733 | H15: 1202604.284
C16: 15 | D16: 225 | E16: 3.872983346 | F16: 610 | G16: 2.708050201 | H16: 3269017.372
C17: 16 | D17: 256 | E17: 4 | F17: 987 | G17: 2.772588722 | H17: 8886110.521
C18: 17 | D18: 289 | E18: 4.123105626 | F18: 1597 | G18: 2.833213344 | H18: 24154952.75
C19: 18 | D19: 324 | E19: 4.242640687 | F19: 2584 | G19: 2.890371758 | H19: 65659969.14
C20: 19 | D20: 361 | E20: 4.358898944 | F20: 4181 | G20: 2.944438979 | H20: 178482301
C21: 20 | D21: 400 | E21: 4.472135955 | F21: 6765 | G21: 2.995732274 | H21: 485165195.4
C22: 21 | D22: 441 | E22: 4.582575695 | F22: 10946 | G22: 3.044522438 | H22: 1318815734
C23: 22 | D23: 484 | E23: 4.69041576 | F23: 17711 | G23: 3.091042453 | H23: 3584912846
C24: 23 | D24: 529 | E24: 4.795831523 | F24: 28657 | G24: 3.135494216 | H24: 9744803446
C25: 24 | D25: 576 | E25: 4.898979486 | F25: 46368 | G25: 3.17805383 | H25: 2.648912213e+10
C26: 25 | D26: 625 | E26: 5 | F26: 75025 | G26: 3.218875825 | H26: 7.200489934e+10
C27: 26 | D27: 676 | E27: 5.099019514 | F27: 121393 | G27: 3.258096538 | H27: 1.957296094e+11
C28: 27 | D28: 729 | E28: 5.196152423 | F28: 196418 | G28: 3.295836866 | H28: 5.320482406e+11
C29: 28 | D29: 784 | E29: 5.291502622 | F29: 317811 | G29: 3.33220451 | H29: 1.446257064e+12
C30: 29 | D30: 841 | E30: 5.385164807 | F30: 514229 | G30: 3.36729583 | H30: 3.931334297e+12
C31: 30 | D31: 900 | E31: 5.477225575 | F31: 832040 | G31: 3.401197382 | H31: 1.068647458e+13
C32: 31 | D32: 961 | E32: 5.567764363 | F32: 1346269 | G32: 3.433987204 | H32: 2.904884967e+13
C33: 32 | D33: 1024 | E33: 5.656854249 | F33: 2178309 | G33: 3.465735903 | H33: 7.896296018e+13
C34: 33 | D34: 1089 | E34: 5.744562647 | F34: 3524578 | G34: 3.496507561 | H34: 2.146435798e+14
C35: 34 | D35: 1156 | E35: 5.830951895 | F35: 5702887 | G35: 3.526360525 | H35: 5.834617425e+14
C36: 35 | D36: 1225 | E36: 5.916079783 | F36: 9227465 | G36: 3.555348061 | H36: 1.586013452e+15
C37: 36 | D37: 1296 | E37: 6 | F37: 14930352 | G37: 3.583518938 | H37: 4311231547115195
C38: 37 | D38: 1369 | E38: 6.08276253 | F38: 24157817 | G38: 3.610917913 | H38: 1.171914237e+16
C39: 38 | D39: 1444 | E39: 6.164414003 | F39: 39088169 | G39: 3.63758616 | H39: 3.185593176e+16
C40: 39 | D40: 1521 | E40: 6.244997998 | F40: 63245986 | G40: 3.663561646 | H40: 8.659340042e+16
C41: 40 | D41: 1600 | E41: 6.32455532 | F41: 102334155 | G41: 3.688879454 | H41: 2.353852668e+17
C42: 41 | D42: 1681 | E42: 6.403124237 | F42: 165580141 | G42: 3.713572067 | H42: 6.398434935e+17
C43: 42 | D43: 1764 | E43: 6.480740698 | F43: 267914296 | G43: 3.737669618 | H43: 1.739274942e+18
C44: 43 | D44: 1849 | E44: 6.557438524 | F44: 433494437 | G44: 3.761200116 | H44: 4.727839468e+18
C45: 44 | D45: 1936 | E45: 6.633249581 | F45: 701408733 | G45: 3.784189634 | H45: 1.285160011e+19
C46: 45 | D46: 2025 | E46: 6.708203932 | F46: 1134903170 | G46: 3.80666249 | H46: 3.493427106e+19
C47: 46 | D47: 2116 | E47: 6.782329983 | F47: 1836311903 | G47: 3.828641396 | H47: 9.496119421e+19
C48: 47 | D48: 2209 | E48: 6.8556546 | F48: 2971215073 | G48: 3.850147602 | H48: 2.581312886e+20
C49: 48 | D49: 2304 | E49: 6.92820323 | F49: 4807526976 | G49: 3.871201011 | H49: 7.016735912e+20
C50: 49 | D50: 2401 | E50: 7 | F50: 7778742049 | G50: 3.891820298 | H50: 1.907346572e+21
C51: 50 | D51: 2500 | E51: 7.071067812 | F51: 12586269025 | G51: 3.912023005 | H51: 5.184705529e+21
C52: 51 | D52: 2601 | E52: 7.141428429 | F52: 20365011074 | G52: 3.931825633 | H52: 1.409349082e+22
C53: 52 | D53: 2704 | E53: 7.211102551 | F53: 32951280099 | G53: 3.951243719 | H53: 3.831008001e+22
C54: 53 | D54: 2809 | E54: 7.280109889 | F54: 53316291173 | G54: 3.970291914 | H54: 1.041375943e+23
C55: 54 | D55: 2916 | E55: 7.348469228 | F55: 86267571272 | G55: 3.988984047 | H55: 2.830753303e+23
C56: 55 | D56: 3025 | E56: 7.416198487 | F56: 139583862445 | G56: 4.007333185 | H56: 7.694785265e+23
C57: 56 | D57: 3136 | E57: 7.483314774 | F57: 225851433717 | G57: 4.025351691 | H57: 2.091659496e+24
C58: 57 | D58: 3249 | E58: 7.549834435 | F58: 365435296162 | G58: 4.043051268 | H58: 5.685719999e+24
C59: 58 | D59: 3364 | E59: 7.615773106 | F59: 591286729879 | G59: 4.060443011 | H59: 1.545538936e+25
C60: 59 | D60: 3481 | E60: 7.681145748 | F60: 956722026041 | G60: 4.077537444 | H60: 4.201210404e+25
C61: 60 | D61: 3600 | E61: 7.745966692 | F61: 1548008755920 | G61: 4.094344562 | H61: 1.14200739e+26
C62: 61 | D62: 3721 | E62: 7.810249676 | F62: 2504730781961 | G62: 4.110873864 | H62: 3.104297936e+26
C63: 62 | D63: 3844 | E63: 7.874007874 | F63: 4052739537881 | G63: 4.127134385 | H63: 8.438356669e+26
C64: 63 | D64: 3969 | E64: 7.937253933 | F64: 6557470319842 | G64: 4.143134726 | H64: 2.293783159e+27
C65: 64 | D65: 4096 | E65: 8 | F65: 10610209857723 | G65: 4.158883083 | H65: 6.235149081e+27
C66: 65 | D66: 4225 | E66: 8.062257748 | F66: 17167680177565 | G66: 4.17438727 | H66: 1.694889244e+28
C67: 66 | D67: =C67^2 -> 4356 | E67: =SQRT(C67) -> 8.124038405 | F67: 27777890035288 | G67: =LN(C67) -> 4.189654742 | H67: =EXP(C67) -> 4.607186634e+28
C68: =C67+1 -> 67 | D68: 4489 | E68: 8.185352772 | F68: 44945570212853 | G68: 4.204692619 | H68: 1.252363171e+29
C69: 68 | D69: 4624 | E69: 8.246211251 | F69: 72723460248141 | G69: 4.219507705 | H69: 3.40427605e+29
C70: 69 | D70: 4761 | E70: 8.306623863 | F70: =F68+F69 -> 117669030460994 | G70: 4.234106505 | H70: 9.253781726e+29
C71: 70 | D71: 4900 | E71: 8.366600265 | F71: 190392490709135 | G71: 4.248495242 | H71: 2.515438671e+30
C72: 71 | D72: 5041 | E72: 8.426149773 | F72: 308061521170129 | G72: 4.262679877 | H72: 6.83767123e+30
C73: 72 | D73: 5184 | E73: 8.485281374 | F73: 498454011879264 | G73: 4.276666119 | H73: 1.858671745e+31
C74: 73 | D74: 5329 | E74: 8.544003745 | F74: 806515533049393 | G74: 4.290459441 | H74: 5.05239363e+31
C75: 74 | D75: 5476 | E75: 8.602325267 | F75: 1304969544928657 | G75: 4.304065093 | H75: 1.37338298e+32
C76: 75 | D76: 5625 | E76: 8.660254038 | F76: 2111485077978050 | G76: 4.317488114 | H76: 3.733241997e+32
C77: 76 | D77: 5776 | E77: 8.717797887 | F77: 3416454622906707 | G77: 4.33073334 | H77: 1.014800388e+33
C78: 77 | D78: 5929 | E78: 8.774964387 | F78: 5527939700884757 | G78: 4.343805422 | H78: 2.758513455e+33
C79: 78 | D79: 6084 | E79: 8.831760866 | F79: 8944394323791464 | G79: 4.356708827 | H79: 7.498416997e+33
C80: 79 | D80: 6241 | E80: 8.888194417 | F80: 1.447233402e+16 | G80: 4.369447852 | H80: 2.038281067e+34
C81: 80 | D81: 6400 | E81: 8.94427191 | F81: 2.341672835e+16 | G81: 4.382026635 | H81: 5.540622384e+34
C82: 81 | D82: 6561 | E82: 9 | F82: 3.788906237e+16 | G82: 4.394449155 | H82: 1.506097315e+35
C83: 82 | D83: 6724 | E83: 9.055385138 | F83: 6.130579072e+16 | G83: 4.406719247 | H83: 4.093996962e+35
C84: 83 | D84: 6889 | E84: 9.110433579 | F84: 9.919485309e+16 | G84: 4.418840608 | H84: 1.112863755e+36
C85: 84 | D85: 7056 | E85: 9.16515139 | F85: 1.605006438e+17 | G85: 4.430816799 | H85: 3.025077322e+36
C86: 85 | D86: 7225 | E86: 9.219544457 | F86: 2.596954969e+17 | G86: 4.442651256 | H86: 8.223012715e+36
C87: 86 | D87: 7396 | E87: 9.273618495 | F87: 4.201961407e+17 | G87: 4.454347296 | H87: 2.235246604e+37
C88: 87 | D88: 7569 | E88: 9.327379053 | F88: 6.798916376e+17 | G88: 4.465908119 | H88: 6.076030225e+37
C89: 88 | D89: 7744 | E89: 9.38083152 | F89: 1.100087778e+18 | G89: 4.477336814 | H89: 1.651636255e+38
C90: 89 | D90: 7921 | E90: 9.433981132 | F90: 1.779979416e+18 | G90: 4.48863637 | H90: 4.489612819e+38
C91: 90 | D91: 8100 | E91: 9.486832981 | F91: 2.880067194e+18 | G91: 4.49980967 | H91: 1.220403294e+39
C92: 91 | D92: 8281 | E92: 9.539392014 | F92: 4.66004661e+18 | G92: 4.510859507 | H92: 3.317400098e+39
C93: 92 | D93: 8464 | E93: 9.591663047 | F93: 7.540113805e+18 | G93: 4.521788577 | H93: 9.017628405e+39
C94: 93 | D94: 8649 | E94: 9.643650761 | F94: 1.220016042e+19 | G94: 4.532599493 | H94: 2.451245543e+40
C95: 94 | D95: 8836 | E95: 9.695359715 | F95: 1.974027422e+19 | G95: 4.543294782 | H95: 6.663176216e+40
C96: 95 | D96: 9025 | E96: 9.746794345 | F96: 3.194043463e+19 | G96: 4.553876892 | H96: 1.811239083e+41
C97: 96 | D97: 9216 | E97: 9.797958971 | F97: 5.168070885e+19 | G97: 4.564348191 | H97: 4.923458286e+41
C98: 97 | D98: 9409 | E98: 9.848857802 | F98: 8.362114349e+19 | G98: 4.574710979 | H98: 1.338334719e+42
C99: 98 | D99: 9604 | E99: 9.899494937 | F99: 1.353018523e+20 | G99: 4.584967479 | H99: 3.637970948e+42
C100: 99 | D100: 9801 | E100: 9.949874371 | F100: 2.189229958e+20 | G100: 4.59511985 | H100: 9.889030319e+42
C101: 100 | D101: 10000 | E101: 10 | F101: 3.542248482e+20 | G101: 4.605170186 | H101: 2.688117142e+43
C102: 101 | D102: 10201 | E102: 10.04987562 | F102: 5.73147844e+20 | G102: 4.615120517 | H102: 7.307059979e+43
C103: 102 | D103: 10404 | E103: 10.09950494 | F103: 9.273726922e+20 | G103: 4.624972813 | H103: 1.986264836e+44
C104: 103 | D104: 10609 | E104: 10.14889157 | F104: 1.500520536e+21 | G104: 4.634728988 | H104: 5.399227611e+44
C105: 104 | D105: 10816 | E105: 10.19803903 | F105: 2.427893228e+21 | G105: 4.644390899 | H105: 1.46766223e+45
C106: 105 | D106: 11025 | E106: 10.24695077 | F106: 3.928413765e+21 | G106: 4.65396035 | H106: 3.989519571e+45
C107: 106 | D107: 11236 | E107: 10.29563014 | F107: 6.356306993e+21 | G107: 4.663439094 | H107: 1.084463855e+46
C108: 107 | D108: 11449 | E108: 10.34408043 | F108: 1.028472076e+22 | G108: 4.672828834 | H108: 2.947878391e+46
C109: 108 | D109: 11664 | E109: 10.39230485 | F109: 1.664102775e+22 | G109: 4.682131227 | H109: 8.013164264e+46
C110: 109 | D110: 11881 | E110: 10.44030651 | F110: 2.692574851e+22 | G110: 4.691347882 | H110: 2.178203881e+47
C111: 110 | D111: 12100 | E111: 10.48808848 | F111: 4.356677626e+22 | G111: 4.700480366 | H111: 5.920972028e+47
C112: 111 | D112: 12321 | E112: 10.53565375 | F112: 7.049252477e+22 | G112: 4.709530201 | H112: 1.609487067e+48
C113: 112 | D113: 12544 | E113: 10.58300524 | F113: 1.14059301e+23 | G113: 4.718498871 | H113: 4.375039447e+48
C114: 113 | D114: 12769 | E114: 10.63014581 | F114: 1.845518258e+23 | G114: 4.727387819 | H114: 1.189259023e+49
C115: 114 | D115: 12996 | E115: 10.67707825 | F115: 2.986111268e+23 | G115: 4.736198448 | H115: 3.232741191e+49
C116: 115 | D116: 13225 | E116: 10.72380529 | F116: 4.831629526e+23 | G116: 4.744932128 | H116: 8.787501636e+49
C117: 116 | D117: 13456 | E117: 10.77032961 | F117: 7.817740794e+23 | G117: 4.753590191 | H117: 2.388690601e+50
C118: 117 | D118: 13689 | E118: 10.81665383 | F118: 1.264937032e+24 | G118: 4.762173935 | H118: 6.493134256e+50
C119: 118 | D119: 13924 | E119: 10.86278049 | F119: 2.046711111e+24 | G119: 4.770684624 | H119: 1.765016886e+51
C120: 119 | D120: 14161 | E120: 10.90871211 | F120: 3.311648144e+24 | G120: 4.779123493 | H120: 4.797813327e+51
C121: 120 | D121: 14400 | E121: 10.95445115 | F121: 5.358359255e+24 | G121: 4.787491743 | H121: 1.304180878e+52
C122: 121 | D122: 14641 | E122: 11 | F122: 8.670007399e+24 | G122: 4.795790546 | H122: 3.545131183e+52
C123: 122 | D123: 14884 | E123: 11.04536102 | F123: 1.402836665e+25 | G123: 4.804021045 | H123: 9.636665674e+52
C124: 123 | D124: 15129 | E124: 11.09053651 | F124: 2.269837405e+25 | G124: 4.812184355 | H124: 2.619517319e+53
C125: 124 | D125: 15376 | E125: 11.13552873 | F125: 3.672674071e+25 | G125: 4.820281566 | H125: 7.120586327e+53
C126: 125 | D126: 15625 | E126: 11.18033989 | F126: 5.942511476e+25 | G126: 4.828313737 | H126: 1.935576042e+54
C127: 126 | D127: 15876 | E127: 11.22497216 | F127: 9.615185546e+25 | G127: 4.836281907 | H127: 5.261441183e+54
C128: 127 | D128: 16129 | E128: 11.26942767 | F128: 1.555769702e+26 | G128: 4.844187086 | H128: 1.430207996e+55
C129: 128 | D129: 16384 | E129: 11.3137085 | F129: 2.517288257e+26 | G129: 4.852030264 | H129: 3.887708406e+55
C130: 129 | D130: 16641 | E130: 11.35781669 | F130: 4.073057959e+26 | G130: 4.859812404 | H130: 1.056788711e+56
C131: 130 | D131: =C131^2 -> 16900 | E131: =SQRT(C131) -> 11.40175425 | F131: 6.590346216e+26 | G131: =LN(C131) -> 4.86753445 | H131: =EXP(C131) -> 2.872649551e+56
C132: =C131+1 -> 131 | D132: 17161 | E132: 11.44552314 | F132: 1.066340417e+27 | G132: 4.875197323 | H132: 7.808671074e+56
C133: 132 | D133: 17424 | E133: 11.48912529 | F133: 1.725375039e+27 | G133: 4.882801923 | H133: 2.122616868e+57
C134: 133 | D134: 17689 | E134: 11.53256259 | F134: =F132+F133 -> 2.791715457e+27 | G134: 4.890349128 | H134: 5.769870862e+57
C135: 134 | D135: 17956 | E135: 11.5758369 | F135: 4.517090496e+27 | G135: 4.8978398 | H135: 1.568413512e+58
C136: 135 | D136: 18225 | E136: 11.61895004 | F136: 7.308805952e+27 | G136: 4.905274778 | H136: 4.263389948e+58
C137: 136 | D137: 18496 | E137: 11.66190379 | F137: 1.182589645e+28 | G137: 4.912654886 | H137: 1.158909542e+59
C138: 137 | D138: 18769 | E138: 11.70469991 | F138: 1.91347024e+28 | G138: 4.919980926 | H138: 3.15024275e+59
C139: 138 | D139: 19044 | E139: 11.74734012 | F139: 3.096059885e+28 | G139: 4.927253685 | H139: 8.563247622e+59
C140: 139 | D140: 19321 | E140: 11.78982612 | F140: 5.009530125e+28 | G140: 4.934473933 | H140: 2.32773204e+60
C141: 140 | D141: 19600 | E141: 11.83215957 | F141: 8.10559001e+28 | G141: 4.941642423 | H141: 6.327431707e+60
C142: 141 | D142: 19881 | E142: 11.87434209 | F142: 1.311512013e+29 | G142: 4.94875989 | H142: 1.719974263e+61
C143: 142 | D143: 20164 | E143: 11.91637529 | F143: 2.122071014e+29 | G143: 4.955827058 | H143: 4.675374785e+61
C144: 143 | D144: 20449 | E144: 11.95826074 | F144: 3.433583028e+29 | G144: 4.96284463 | H144: 1.270898632e+62
C145: 144 | D145: 20736 | E145: 12 | F145: 5.555654042e+29 | G145: 4.9698133 | H145: 3.454660657e+62
C146: 145 | D146: 21025 | E146: 12.04159458 | F146: 8.98923707e+29 | G146: 4.976733742 | H146: 9.390741287e+62
C147: 146 | D147: 21316 | E147: 12.08304597 | F147: 1.454489111e+30 | G147: 4.983606622 | H147: 2.55266814e+63
C148: 147 | D148: 21609 | E148: 12.12435565 | F148: 2.353412818e+30 | G148: 4.990432587 | H148: 6.938871418e+63
C149: 148 | D149: 21904 | E149: 12.16552506 | F149: 3.807901929e+30 | G149: 4.997212274 | H149: 1.886180808e+64
C150: 149 | D150: 22201 | E150: 12.20655562 | F150: 6.161314748e+30 | G150: 5.003946306 | H150: 5.127171017e+64
C151: 150 | D151: 22500 | E151: 12.24744871 | F151: 9.969216677e+30 | G151: 5.010635294 | H151: 1.393709581e+65
C152: 151 | D152: 22801 | E152: 12.28820573 | F152: 1.613053142e+31 | G152: 5.017279837 | H152: 3.788495427e+65
C153: 152 | D153: 23104 | E153: 12.32882801 | F153: 2.60997481e+31 | G153: 5.023880521 | H153: 1.029819828e+66
C154: 153 | D154: 23409 | E154: 12.36931688 | F154: 4.223027953e+31 | G154: 5.030437921 | H154: 2.799340524e+66
C155: 154 | D155: 23716 | E155: 12.40967365 | F155: 6.833002763e+31 | G155: 5.036952602 | H155: 7.609396479e+66
C156: 155 | D156: 24025 | E156: 12.4498996 | F156: 1.105603072e+32 | G156: 5.043425117 | H156: 2.068448417e+67
C157: 156 | D157: 24336 | E157: 12.489996 | F157: 1.788903348e+32 | G157: 5.049856007 | H157: 5.622625746e+67
C158: 157 | D158: 24649 | E158: 12.52996409 | F158: 2.894506419e+32 | G158: 5.056245805 | H158: 1.528388139e+68
C159: 158 | D159: 24964 | E159: 12.56980509 | F159: 4.683409767e+32 | G159: 5.062595033 | H159: 4.154589706e+68
C160: 159 | D160: 25281 | E160: 12.60952021 | F160: 7.577916187e+32 | G160: 5.068904202 | H160: 1.12933457e+69
C161: 160 | D161: 25600 | E161: 12.64911064 | F161: 1.226132595e+33 | G161: 5.075173815 | H161: 3.069849641e+69
C162: 161 | D162: 25921 | E162: 12.68857754 | F162: 1.983924214e+33 | G162: 5.081404365 | H162: 8.344716494e+69
C163: 162 | D163: 26244 | E163: 12.72792206 | F163: 3.210056809e+33 | G163: 5.087596335 | H163: 2.268329121e+70
C164: 163 | D164: 26569 | E164: 12.76714533 | F164: 5.193981024e+33 | G164: 5.093750201 | H164: 6.165957831e+70
C165: 164 | D165: 26896 | E165: 12.80624847 | F165: 8.404037833e+33 | G165: 5.099866428 | H165: 1.676081113e+71
C166: 165 | D166: 27225 | E166: 12.84523258 | F166: 1.359801886e+34 | G166: 5.105945474 | H166: 4.556060831e+71
C167: 166 | D167: 27556 | E167: 12.88409873 | F167: 2.200205669e+34 | G167: 5.111987788 | H167: 1.238465737e+72
C168: 167 | D168: 27889 | E168: 12.92284798 | F168: 3.560007555e+34 | G168: 5.117993812 | H168: 3.366498907e+72
C169: 168 | D169: 28224 | E169: 12.9614814 | F169: 5.760213224e+34 | G169: 5.123963979 | H169: 9.151092805e+72
C170: 169 | D170: 28561 | E170: 13 | F170: 9.320220778e+34 | G170: 5.129898715 | H170: 2.487524928e+73
C171: 170 | D171: 28900 | E171: 13.03840481 | F171: 1.5080434e+35 | G171: 5.135798437 | H171: 6.76179381e+73
C172: 171 | D172: 29241 | E172: 13.07669683 | F172: 2.440065478e+35 | G172: 5.141663557 | H172: 1.838046124e+74
C173: 172 | D173: 29584 | E173: 13.11487705 | F173: 3.948108878e+35 | G173: 5.147494477 | H173: 4.99632738e+74
C174: 173 | D174: 29929 | E174: 13.15294644 | F174: 6.388174356e+35 | G174: 5.153291594 | H174: 1.358142592e+75
C175: 174 | D175: 30276 | E175: 13.19090596 | F175: 1.033628323e+36 | G175: 5.159055299 | H175: 3.69181433e+75
C176: 175 | D176: 30625 | E176: 13.22875656 | F176: 1.672445759e+36 | G176: 5.164785974 | H176: 1.003539181e+76
C177: 176 | D177: 30976 | E177: 13.26649916 | F177: 2.706074082e+36 | G177: 5.170483995 | H177: 2.727902319e+76
C178: 177 | D178: 31329 | E178: 13.3041347 | F178: 4.378519842e+36 | G178: 5.176149733 | H178: 7.415207303e+76
C179: 178 | D179: 31684 | E179: 13.34166406 | F179: 7.084593924e+36 | G179: 5.18178355 | H179: 2.015662327e+77
C180: 179 | D180: 32041 | E180: 13.37908816 | F180: 1.146311377e+37 | G180: 5.187385806 | H180: 5.479138275e+77
C181: 180 | D181: 32400 | E181: 13.41640786 | F181: 1.854770769e+37 | G181: 5.192956851 | H181: 1.489384201e+78
C182: 181 | D182: 32761 | E182: 13.45362405 | F182: 3.001082145e+37 | G182: 5.198497031 | H182: 4.048566009e+78
C183: 182 | D183: 33124 | E183: 13.49073756 | F183: 4.855852914e+37 | G183: 5.204006687 | H183: 1.100514341e+79
C184: 183 | D184: 33489 | E184: 13.52774926 | F184: 7.85693506e+37 | G184: 5.209486153 | H184: 2.991508136e+79
C185: 184 | D185: 33856 | E185: 13.56465997 | F185: 1.271278797e+38 | G185: 5.214935758 | H185: 8.131762205e+79
C186: 185 | D186: 34225 | E186: 13.60147051 | F186: 2.056972303e+38 | G186: 5.220355825 | H186: 2.210442144e+80
C187: 186 | D187: 34596 | E187: 13.6381817 | F187: 3.328251101e+38 | G187: 5.225746674 | H187: 6.008604712e+80
C188: 187 | D188: 34969 | E188: 13.67479433 | F188: 5.385223404e+38 | G188: 5.231108617 | H188: 1.6333081e+81
C189: 188 | D189: 35344 | E189: 13.7113092 | F189: 8.713474505e+38 | G189: 5.236441963 | H189: 4.439791729e+81
C190: 189 | D190: 35721 | E190: 13.74772708 | F190: 1.409869791e+39 | G190: 5.241747015 | H190: 1.206860518e+82
C191: 190 | D191: 36100 | E191: 13.78404875 | F191: 2.281217241e+39 | G191: 5.247024072 | H191: 3.280587015e+82
C192: 191 | D192: 36481 | E192: 13.82027496 | F192: 3.691087032e+39 | G192: 5.252273428 | H192: 8.917560071e+82
C193: 192 | D193: 36864 | E193: 13.85640646 | F193: 5.972304274e+39 | G193: 5.257495372 | H193: 2.424044149e+83
C194: 193 | D194: 37249 | E194: 13.89244399 | F194: 9.663391306e+39 | G194: 5.262690189 | H194: 6.589235163e+83
C195: 194 | D195: =C195^2 -> 37636 | E195: =SQRT(C195) -> 13.92838828 | F195: 1.563569558e+40 | G195: =LN(C195) -> 5.267858159 | H195: =EXP(C195) -> 1.791139821e+84
C196: =C195+1 -> 195 | D196: 38025 | E196: 13.96424004 | F196: 2.529908689e+40 | G196: 5.272999559 | H196: 4.868822827e+84
C197: 196 | D197: 38416 | E197: 14 | F197: 4.093478247e+40 | G197: 5.278114659 | H197: 1.323483262e+85
C198: 197 | D198: 38809 | E198: 14.03566885 | F198: =F196+F197 -> 6.623386935e+40 | G198: 5.283203729 | H198: 3.5976005e+85
C199: 198 | D199: 39204 | E199: 14.07124728 | F199: 1.071686518e+41 | G199: 5.288267031 | H199: 9.779292066e+85
C200: 199 | D200: 39601 | E200: 14.10673598 | F200: 1.734025212e+41 | G200: 5.293304825 | H200: 2.658287192e+86
... 4300 more rows

Sheet 🔎 Batch Results
B2: ꭓ² matching | C2: 1st Digit | D2: 2nd Digit | E2: 3nd Digit | F2: 4th Digit | G2: 5th Digit | H2: 6th Digit | I2: 7th Digit | J2: 8th Digit | K2: 9th Digit | L2: Sample Size
B3: n | C3: 0 | D3: 6.064608887e-33 | E3: 0.9824226709 | F3: 4.266108693e-07 | G3: 0 | H3: 0 | I3: 0 | J3: 0 | K3: 0 | L3: 20001
B4: Carré | C4: 0 | D4: 1.064584476e-05 | E4: 0.9891519817 | F4: 0.064929318 | G4: 3.969641273e-19 | H4: 8.744932509e-216 | I4: 0 | J4: 0 | K4: 0 | L4: 20001
B5: Racine | C5: 0 | D5: 0 | E5: 0.2921760607 | F5: 0.5793238742 | G5: 0.2433049415 | H5: 0.4852166441 | I5: 0.2793465891 | J5: 0.03678989049 | K5: 0.02115016194 | L5: 20001
B6: Fibonacci | C6: 0.9999999819 | D6: 0.9999612541 | E6: 0.9997131688 | F6: 0.8430096737 | G6: 0.3517646007 | H6: 0.2029228026 | I6: 0.481593526 | J6: 0.03781425958 | K6: 0.01369986042 | L6: 1477
B7: Log népérien | C7: 0 | D7: 0 | E7: 0.002250642722 | F7: 0.9996499135 | G7: 0.9679728086 | H7: 0.4190501326 | I7: 0.950724506 | J7: 0.8085159473 | K7: 0.9631337603 | L7: 20000
B8: Exponentielle | C8: 0.9999995911 | D8: 0.9997798037 | E8: 0.9799132276 | F8: 0.2351157091 | G8: 0.5854749303 | H8: 0.7114805367 | I8: 0.2844942226 | J8: 0.2844981149 | K8: 0.2985692759 | L8: 710

Sheet ⚙️ Theorical Frequencies
B3: order \ digit | C3: 0 | D3: 1 | E3: 2 | F3: 3 | G3: 4 | H3: 5 | I3: 6 | J3: 7 | K3: 8 | L3: 9
B4: 1 | C4: 0 | D4: 0.3010299957 | E4: 0.1760912591 | F4: 0.1249387366 | G4: 0.09691001301 | H4: 0.07918124605 | I4: 0.06694678963 | J4: 0.05799194698 | K4: 0.05115252245 | L4: 0.04575749056
B5: 2 | C5: 0.1196792686 | D5: 0.1138901034 | E5: 0.108821499 | F5: 0.1043295602 | G5: 0.1003082023 | H5: 0.0966772358 | I5: 0.09337473578 | J5: 0.09035198927 | K5: 0.08757005358 | L5: 0.08499735206
B6: 3 | C6: 0.1017843646 | D6: 0.1013759774 | E6: 0.1009721981 | F6: 0.1005729321 | G6: 0.1001780876 | H6: 0.09978757569 | I6: 0.09940130994 | J6: 0.09901920656 | K6: 0.09864118415 | L6: 0.09826716368
B7: 4 | C7: 0.1001761469 | D7: 0.1001368881 | E7: 0.1000976726 | F7: 0.1000585003 | G7: 0.1000193711 | H7: 0.09998028495 | I7: 0.09994124175 | J7: 0.09990224142 | K7: 0.09986328386 | L7: 0.099824369
B8: 5 | C8: 0.1000175915 | D8: 0.1000136811 | E8: 0.1000097712 | F8: 0.1000058617 | G8: 0.1000019526 | H8: 0.09999804396 | I8: 0.09999413574 | J8: 0.09999022794 | K8: 0.09998632058 | L8: 0.09998241365
B9: 6 | C9: 0.1000017589 | D9: 0.100001368 | E9: 0.1000009772 | F9: 0.1000005863 | G9: 0.1000001954 | H9: 0.09999980455 | I9: 0.09999941369 | J9: 0.09999902283 | K9: 0.09999863198 | L9: 0.09999824113
B10: 7 | C10: 0.1000001759 | D10: 0.1000001368 | E10: 0.1000000977 | F10: 0.1000000586 | G10: 0.1000000195 | H10: 0.09999998046 | I10: 0.09999994137 | J10: 0.09999990228 | K10: 0.0999998632 | L10: 0.09999982411
B11: 8 | C11: 0.1000000176 | D11: 0.1000000137 | E11: 0.1000000098 | F11: 0.1000000059 | G11: 0.100000002 | H11: 0.09999999805 | I11: 0.09999999414 | J11: 0.09999999023 | K11: 0.09999998632 | L11: 0.09999998241
B12: 9 | C12: 0.1000000018 | D12: 0.1000000014 | E12: 0.100000001 | F12: 0.1000000006 | G12: 0.1000000002 | H12: 0.0999999998 | I12: 0.09999999941 | J12: 0.09999999902 | K12: 0.09999999863 | L12: 0.09999999824
F16: For the 1st order probability we use the generic equation log(1 + 1/d )
F17: The probability that d (d = 0, 1, ..., 9) is encountered as the n-th (n > 1) digit is
F22: Example :
F23: P(3 at order 2) = | G23: =benfordProbability(10,3,2) -> 0.1043295602

Sheet 💡 Help
